{"text_format":"3","workbook":"xlsx","n_sheets":1,"sheets":["Start-up-yrityksen kulut"],"not_rendered":{"defined_names":1},"read":"whole","date_system":"1900"}

{"sheet":"Start-up-yrityksen kulut","index":0,"n_rows":120,"n_cols":4,"rows_kept":120,"merged":[[1,1,1,3],[60,1,60,3],[82,1,82,3]]}
["START-UP-YRITYKSEN KULUT",null,null,"YRITYKSEN NIMI OY"]
[null,"ENNEN LASKENTATAULUKON KÄYTTÄMISTÄ\nLähes kaikki yritystä perustamassa olevat aliarvioivat kustannukset ja joutuvat siten aloittamaan yritystoiminnan mahdollisesti liian pienen pääomavarannon turvin. Tämän sudenkuopan voi välttää tekemällä taustaselvityksen ja suunnittelun tarkasti. Start-up-yrityksen kulut -malli auttaa sinua tässä prosessissa.\n\nALOITA ARVIOIMALLA KULUT\nMitä kuluja yritystoiminnan aloittamisesta koituu?  Tarkka tulos saadaan kiinnittämällä huomiota yksityiskohtiin. Laadi luettelo kaikista hankinnoista jokaisessa kuluosiossa. Tämä sisältää konkreettiset resurssit (esimerkiksi laitteet ja varasto) ja palvelut (esimerkiksi remontointi, vakuutus). Määritä sitten, mistä voit ostaa nämä tuotteet tai palvelut. Selvitä useamman toimittajan tiedot ja tee vertailua. Älä keskity pelkästään hintaan; maksu- ja toimitusehdot, luotettavuus ja palvelu ovat myös tärkeitä. "]
[]
[null,"START-UP-YRITYKSEN KULUT"]
[null,"RAKENNUKSET/KIINTEISTÖT"," ","SUMMA"]
[null,"Osto",null,{"v":0,"d":"0.00 €"}]
[null,"Rakennustyö",null,{"v":0,"d":"0.00 €"}]
[null,"Remontti",null,{"v":0,"d":"0.00 €"}]
[null,"Muut",null,{"v":0,"d":"0.00 €"}]
[null,"Summa",null,{"$f":"SUBTOTAL(109,Kiinteistöt[SUMMA])","v":{"v":0,"d":"0.00 €"}}]
[]
[null,"VUOKRAUSKALUSTON PARANNUKSET"," ","SUMMA"]
[null,"Kohde 1",null,{"v":0,"d":"0.00 €"}]
[null,"Kohde 2",null,{"v":0,"d":"0.00 €"}]
[null,"Kohde 3",null,{"v":0,"d":"0.00 €"}]
[null,"Kohde 4",null,{"v":0,"d":"0.00 €"}]
[null,"Summa",null,{"$f":"SUBTOTAL(109,Parannukset[SUMMA])","v":{"v":0,"d":"0.00 €"}}]
[]
[null,"TUOTANTOHYÖDYKELUETTELO"," ","SUMMA"]
[null,"Huonekalut",null,{"v":0,"d":"0.00 €"}]
[null,"Laitteet",null,{"v":0,"d":"0.00 €"}]
[null,"Kalusteet",null,{"v":0,"d":"0.00 €"}]
[null,"Koneet",null,{"v":0,"d":"0.00 €"}]
[null,"Muut",null,{"v":0,"d":"0.00 €"}]
[null,"Summa",null,{"$f":"SUBTOTAL(109,Pääoma[SUMMA])","v":{"v":0,"d":"0.00 €"}}]
[]
[null,"SIJAINTI JA HALLINNOINTIKULUT"," ","SUMMA"]
[null,"Vuokraus",null,{"v":0,"d":"0.00 €"}]
[null,"Julkispalvelumaksut",null,{"v":0,"d":"0.00 €"}]
[null,"Juridiset maksut ja kirjanpito",null,{"v":0,"d":"0.00 €"}]
[null,"Ennakolta maksettu vakuutus",null,{"v":0,"d":"0.00 €"}]
[null,"Avaamista edeltävät menot ",null,{"v":0,"d":"0.00 €"}]
[null,"Muut",null,{"v":0,"d":"0.00 €"}]
[null,"Summa",null,{"$f":"SUBTOTAL(109,Hallinnointikulut[SUMMA])","v":{"v":0,"d":"0.00 €"}}]
[]
[null,"ALOITUSINVENTAARIO"," ","SUMMA"]
[null,"Luokka 1",null,{"v":0,"d":"0.00 €"}]
[null,"Luokka 2",null,{"v":0,"d":"0.00 €"}]
[null,"Luokka 3",null,{"v":0,"d":"0.00 €"}]
[null,"Luokka 4",null,{"v":0,"d":"0.00 €"}]
[null,"Luokka 5",null,{"v":0,"d":"0.00 €"}]
[null,"Summa",null,{"$f":"SUBTOTAL(109,Aloitusinventaario[SUMMA])","v":{"v":0,"d":"0.00 €"}}]
[]
[null,"MAINONTA- JA MARKKINOINTIKULUT"," ","SUMMA"]
[null,"Mainonta",null,{"v":0,"d":"0.00 €"}]
[null,"Kyltit ja merkit",null,{"v":0,"d":"0.00 €"}]
[null,"Tulostaminen",null,{"v":0,"d":"0.00 €"}]
[null,"Matkat/viihde",null,{"v":0,"d":"0.00 €"}]
[null,"Muut/lisäosiot",null,{"v":0,"d":"0.00 €"}]
[null,"Summa",null,{"$f":"SUBTOTAL(109,Markkinointikulut[SUMMA])","v":{"v":0,"d":"0.00 €"}}]
[]
[null,"MUUT KULUT"," ","SUMMA"]
[null,"Muu kulu 1",null,{"v":0,"d":"0.00 €"}]
[null,"Muu kulu 2",null,{"v":0,"d":"0.00 €"}]
[null,"Summa",null,{"$f":"SUBTOTAL(109,MuutKulut[SUMMA])","v":{"v":0,"d":"0.00 €"}}]
[]
[null,"Varat odottamattomia menoja varten",null,{"v":0,"d":"0.00 €"}]
[]
[null,"Käyttöpääoma ",null,{"v":0,"d":"0.00 €"}]
[]
[null,"LISÄÄ VAROJA ODOTTAMATTOMIA MENOJA VARTEN\nVarmista, että erittelet, miten päädyit siihen summaan, jonka säästät odottamattomia menoja varten. \n\nMÄÄRITÄ KASSAVIRTA\nToimintaa ei voi aloittaa tyhjällä pankkitilillä. Tarvitset varoja kattamaan kustannukset sillä aikaa, kun yritystoiminta pääsee vauhtiin. Tavoitteena on tehdä 12 kuukauden kassavirtaennuste. Siihen on tarkoitus tehdä arvio käyttöpääomatarpeista. Jätä tämä rivi toistaiseksi tyhjäksi tai kirjoita siihen karkea arvio. Kun olet selvittänyt kassavirran, voit palata takaisin ja lisätä tarkkaan harkitun määrän.\n\nLISÄÄ PÄÄOMAN LÄHTEET\nNyt kun olet arvioinut, kuinka paljon pääomaa tarvitaan yrityksen perustamiseen, sinun kannattaa keskittyä tämän laskentataulukon yläosaan. Kirjoita, kuinka paljon rahaa sijoitat itse, kuinka paljon saadaan kumppaneilta tai sijoittajilta ja kuinka paljon hankitaan lainaamalla."]
[]
[null,"PÄÄOMAN LÄHTEET"]
[null,"OMISTAJIEN SIJOITUS  (NIMI JA OMISTUS-%)"," ","SUMMA"]
[null,"Nimesi ja omistusprosenttisi",null,{"v":0,"d":"0.00 €"}]
[null,"Muu sijoittaja",null,{"v":0,"d":"0.00 €"}]
[null,"Muu sijoittaja",null,{"v":0,"d":"0.00 €"}]
[null,"Muu sijoittaja",null,{"v":0,"d":"0.00 €"}]
[null,"Summa",null,{"$f":"SUBTOTAL(109,OmistajienSijoitukset[SUMMA])","v":{"v":0,"d":"0.00 €"}}]
[]
[null,"PANKKILAINAT"," ","SUMMA"]
[null,"Pankki 1",null,{"v":0,"d":"0.00 €"}]
[null,"Pankki 2",null,{"v":0,"d":"0.00 €"}]
[null,"Pankki 3",null,{"v":0,"d":"0.00 €"}]
[null,"Pankki 4",null,{"v":0,"d":"0.00 €"}]
[null,"Summa",null,{"$f":"SUBTOTAL(109,Pankkilainat[SUMMA])","v":{"v":0,"d":"0.00 €"}}]
[]
[null,"MUUT LAINAT"," ","SUMMA"]
[null,"Lähde 1",null,{"v":0,"d":"0.00 €"}]
[null,"Lähde 2",null,{"v":0,"d":"0.00 €"}]
[null,"Summa",null,{"$f":"SUBTOTAL(109,MuutLainat[SUMMA])","v":{"v":0,"d":"0.00 €"}}]
[]
[null,"ESITÄ TODISTEET TAKAUKSESTA\nJos käytät tätä suunnitelmaa lainan hakemiseen pankista, esitä alhaalla olevassa osiossa, mitä varallisuutta käytät lainan takauksena, ja arvioi tämän varallisuuden arvo. Valmistaudu esittämään jonkinlainen todiste varallisuuden arvon arvion tueksi."]
[]
[null,"YHTEENVETO"]
[null,"PÄÄOMAN LÄHDE"," ","YHTEENSÄ"]
[null,"Omistajien ja muiden sijoitukset",null,{"$f":"OmistajienSijoitukset[[#Totals],[SUMMA]]","v":{"v":0,"d":"0.00 €"}}]
[null,"Pankkilainat",null,{"$f":"Pankkilainat[[#Totals],[SUMMA]]","v":{"v":0,"d":"0.00 €"}}]
[null,"Muut lainat",null,{"$f":"MuutLainat[[#Totals],[SUMMA]]","v":{"v":0,"d":"0.00 €"}}]
[null,"Summa",null,{"$f":"SUBTOTAL(109,PääomanLähteet[YHTEENSÄ])","v":{"v":0,"d":"0.00 €"}}]
[]
[null,"START-UP-YRITYKSEN KULUT"," ","YHTEENSÄ"]
[null,"Rakennukset/kiinteistöt",null,{"$f":"Kiinteistöt[[#Totals],[SUMMA]]","v":{"v":0,"d":"0.00 €"}}]
[null,"Vuokrauskaluston parannukset",null,{"$f":"Parannukset[[#Totals],[SUMMA]]","v":{"v":0,"d":"0.00 €"}}]
[null,"Tuotantohyödykkeet",null,{"$f":"Pääoma[[#Totals],[SUMMA]]","v":{"v":0,"d":"0.00 €"}}]
[null,"Sijainti-/hallinnointikulut",null,{"$f":"Hallinnointikulut[[#Totals],[SUMMA]]","v":{"v":0,"d":"0.00 €"}}]
[null,"Aloitusinventaario",null,{"$f":"Aloitusinventaario[[#Totals],[SUMMA]]","v":{"v":0,"d":"0.00 €"}}]
[null,"Mainonta-/markkinointikulut",null,{"$f":"Markkinointikulut[[#Totals],[SUMMA]]","v":{"v":0,"d":"0.00 €"}}]
[null,"Muut kulut",null,{"$f":"MuutKulut[[#Totals],[SUMMA]]","v":{"v":0,"d":"0.00 €"}}]
[null,"Varat odottamattomia menoja varten",null,{"$f":"SUM('Start-up-yrityksen kulut'!$C$57)","v":{"v":0,"d":"0.00 €"}}]
[null,"Käyttöpääoma",null,{"$f":"SUM('Start-up-yrityksen kulut'!$C$59)","v":{"v":0,"d":"0.00 €"}}]
[null,"Summa",null,{"$f":"SUBTOTAL(109,StartuUpYrityksenKulut[YHTEENSÄ])","v":{"v":0,"d":"0.00 €"}}]
[]
[null,"LAINAHAKEMUKSEN VAKUUS JA TAKAUS"]
[null,"LAINAN TAKAUS","KUVAUS","ARVO"]
[null,"Kiinteistö",null,{"v":0,"d":"0.00 €"}]
[null,"Muu takaus",null,{"v":0,"d":"0.00 €"}]
[null,"Muu takaus",null,{"v":0,"d":"0.00 €"}]
[null,"Muu takaus",null,{"v":0,"d":"0.00 €"}]
[null,"Summa",null,{"$f":"SUBTOTAL(109,Takaus[ARVO])","v":{"v":0,"d":"0.00 €"}}]
[]
[null,"OMISTAJAT"," ","  "]
[null,"Oma nimesi tähän"]
[null,"Muu omistaja"]
[null,"Muu omistaja"]
[]
[null,"LAINAN TAKAAJAT (MUUT KUIN OMISTAJAT)"," ","  "]
[null,"Lainan takaaja 1"]
[null,"Lainan takaaja 2"]
[null,"Lainan takaaja 3"]